[Event "10th Floripa Open 2024"]
[Site "Florianopolis"]
[Date "2024.01.22"]
[Round "2.6"]
[White "Kim, Thiago"]
[Black "Flores Quillas, Diego Saul Rodri"]
[Result "1/2-1/2"]
[ECO "B81"]
[WhiteElo "1944"]
[BlackElo "2429"]
[Annotator "RC"]
[PlyCount "117"]
[EventDate "2024.01.10"]
[EventType "swiss"]
[EventCountry "BRA"]
[SourceTitle "playchess.com"]
[Source "ChessBase"]
[SourceQuality "1"]
[TimeControl "5400+30"]

1. e4 {[%emt 0:00:03]} c5 {[%emt 0:04:17]} 2. Nf3 {[%emt 0:00:05]} e6 {[%emt 0:00:07]} 3. d4 {[%emt 0:00:09]} cxd4 {[%emt 0:00:03]} 4. Nxd4 {[%emt 0:00:06]} Nf6 {[%emt 0:00:04]} 5. Nc3 {[%emt 0:00:10]} d6 {[%emt 0:00:03]} 6. g4 {[%emt 0:00:38]} e5 {[%emt 0:00:50]} 7. Bb5+ {[%emt 0:00:06]} Bd7 {[%emt 0:00:04]} 8. Bxd7+ {[%emt 0:00:08]} Qxd7 {[%emt 0:00:08]} 9. Nf5 {[%emt 0:00:14]} h5 {[%emt 0:00:06]} 10. gxh5 {[%emt 0:00:09]} Nxh5 {[%emt 0:01:02]} 11. Nd5 {[%emt 0:00:43]} g6 {[%emt 0:00:58]} 12. Ng3 {[%emt 0:00:10]} Bg7 {[%emt 0:00:21]} 13. Bg5 {[%emt 0:00:27]} Nc6 {[%emt 0:03:32]} 14. c3 {[%emt 0:16:08]} Rc8 {[%emt 0:23:32]} 15. Qf3 {[%emt 0:15:00]} Qh3 {[%emt 0:00:13]} 16. O-O-O {[%emt 0:10:10]} O-O {[%emt 0:04:12]} 17. Ne7+ {[%emt 0:11:36]} Nxe7 {[%emt 0:00:05]} 18. Bxe7 {[%emt 0:00:02]} Rfe8 {[%emt 0:00:06]} 19. Bxd6 {[%emt 0:00:11]} Rc6 {[%emt 0:00:08]} 20. Ba3 {[%emt 0:02:51]} Nf4 {[%emt 0:00:08]} 21. Kb1 {[%emt 0:01:13]} a5 {[%emt 0:00:41]} 22. Rd6 {[%emt 0:10:53]} Rxd6 {[%emt 0:00:57]} 23. Bxd6 {[%emt 0:00:52]} Rd8 {[%emt 0:00:04]} 24. Bc5 {[%emt 0:00:58]} Rd3 {[%emt 0:00:54]} 25. Be3 {[%emt 0:00:33]} Bf8 {[%emt 0:02:10]} 26. Rd1 {[%emt 0:02:09]} Qd7 {[%emt 0:04:00]} 27. Rc1 {[%emt 0:04:01]} a4 {[%emt 0:01:21]} 28. Ne2 {[%emt 0:02:39]} Bh6 {[%emt 0:05:50]} 29. Ng3 {[%emt 0:04:33]} a3 {[%emt 0:00:33]} 30. b3 {[%emt 0:00:54]} Ne6 {[%emt 0:10:37]} 31. Nf1 {[%emt 0:00:01]} Bxe3 {[%emt 0:01:20]} 32. Nxe3 {[%emt 0:00:50]} Qc6 {[%emt 0:00:35]} 33. Qh1 {[%emt 0:01:26]} Rxc3 {[%emt 0:03:33]} 34. Nd5 {[%emt 0:00:05]} Rxc1+ {[%emt 0:00:05]} 35. Qxc1 {[%emt 0:00:02]} Qxc1+ {[%emt 0:07:41]} 36. Kxc1 {[%emt 0:00:04]} Ng5 {[%emt 0:00:04]} 37. Nc3 {[%emt 0:01:05]} Nh3 {[%emt 0:00:04]} 38. Kd2 {[%emt 0:01:39]} Nxf2 {[%emt 0:00:07]} 39. Ke2 {[%emt 0:00:50]} Ng4 {[%emt 0:02:11]} 40. h3 {[%emt 0:00:08]} Nf6 {[%emt 0:00:28]} 41. Kf3 {[%emt 0:00:19]} Ne8 {[%emt 0:00:16]} 42. Nb5 {[%emt 0:00:20]} f5 {[%emt 0:00:31]} 43. Nxa3 {[%emt 0:00:37]} Kf7 {[%emt 0:00:05]} 44. Nc4 {[%emt 0:00:33]} Ke6 {[%emt 0:00:06]} 45. a4 {[%emt 0:02:54]} Nf6 {[%emt 0:00:12]} 46. Nd2 {[%emt 0:03:11]} Ne8 {[%emt 0:05:27]} 47. Nc4 {[%emt 0:00:29]} Nc7 {[%emt 0:00:26]} 48. Na5 {[%emt 0:01:05]} b6 {[%emt 0:01:01]} 49. Nc4 {[%emt 0:00:30]} b5 {[%emt 0:00:01]} 50. Nb2 {[%emt 0:02:25]} f4 {[%emt 0:02:05]} 51. Nd3 {[%emt 0:00:17]} bxa4 {[%emt 0:00:28]} 52. bxa4 {[%emt 0:00:03]} Kd6 {[%emt 0:00:14]} 53. a5 {[%emt 0:02:07]} Na6 {[%emt 0:00:11]} 54. h4 {[%emt 0:01:23]} Nc5 {[%emt 0:00:12]} 55. a6 {[%emt 0:01:24]} Nxa6 {[%emt 0:00:27]} 56. Nxf4 {[%emt 0:00:04]} exf4 {[%emt 0:00:04]} 57. Kxf4 {[%emt 0:00:03]} Ke6 {[%emt 0:00:07]} 58. Kg5 {[%emt 0:00:06]} Kf7 {[%emt 0:00:03]} 59. h5 {[%emt 0:00:04]} 1/2-1/2

[Event "10th Floripa Open 2024"]
[Site "Florianopolis"]
[Date "2024.01.22"]
[Round "2.7"]
[White "Haldorsen, Benjamin"]
[Black "Bassani, Jaison Jose"]
[Result "1-0"]
[ECO "B23"]
[WhiteElo "2427"]
[BlackElo "1949"]
[Annotator "RC"]
[PlyCount "83"]
[EventDate "2024.01.10"]
[EventType "swiss"]
[EventCountry "BRA"]
[SourceTitle "playchess.com"]
[Source "ChessBase"]
[SourceQuality "1"]
[TimeControl "5400+30"]

1. e4 {[%emt 0:02:20]} c5 {[%emt 0:00:08]} 2. Nc3 {[%emt 0:00:49]} Nc6 {[%emt 0:00:06]} 3. Bb5 {[%emt 0:00:12]} d6 {[%emt 0:00:06]} 4. Bxc6+ {[%emt 0:00:26]} bxc6 {[%emt 0:00:02]} 5. d3 {[%emt 0:00:14]} g6 {[%emt 0:00:07]} 6. f4 {[%emt 0:00:12]} Bg7 {[%emt 0:00:06]} 7. Nf3 {[%emt 0:00:09]} Nh6 {[%emt 0:00:18]} 8. O-O {[%emt 0:00:32]} O-O {[%emt 0:00:11]} 9. Qe1 {[%emt 0:00:44]} f6 {[%emt 0:00:06]} 10. e5 {[%emt 0:03:03]} Nf5 {[%emt 0:05:11]} 11. exd6 {[%emt 0:04:36]} exd6 {[%emt 0:00:24]} 12. Qf2 {[%emt 0:00:09]} Re8 {[%emt 0:07:26]} 13. b3 {[%emt 0:13:59]} Be6 {[%emt 0:05:33]} 14. Re1 {[%emt 0:06:30]} Qd7 {[%emt 0:02:57]} 15. Bb2 {[%emt 0:00:11]} Re7 {[%emt 0:09:51]} 16. Ne4 {[%emt 0:02:00]} Rf8 {[%emt 0:00:05]} 17. c4 {[%emt 0:02:27]} h6 {[%emt 0:21:27]} 18. h3 {[%emt 0:04:19]} h5 {[%emt 0:45:26]} 19. Rad1 {[%emt 0:02:57]} Qc7 {[%emt 0:00:00]} 20. Bc3 {[%emt 0:01:38]} Bc8 {[%emt 0:00:00]} 21. Ng3 {[%emt 0:11:31]} Rfe8 {[%emt 0:00:00]} 22. Rxe7 {[%emt 0:05:09]} Rxe7 {[%emt 0:00:00]} 23. Ne4 {[%emt 0:09:31]} Kf7 {[%emt 0:00:00]} 24. Bd2 {[%emt 0:04:12]} Kg8 {[%emt 0:00:00]} 25. Bc3 {[%emt 0:05:43]} Kf7 {[%emt 0:00:00]} 26. Nh4 {[%emt 0:05:40]} Nd4 {[%emt 0:00:00]} 27. Bxd4 {[%emt 0:04:00]} cxd4 {[%emt 0:00:00]} 28. Qxd4 {[%emt 0:01:51]} f5 {[%emt 0:00:00]} 29. Ng5+ {[%emt 0:00:22]} Kg8 {[%emt 0:00:00]} 30. Qf2 {[%emt 0:00:19]} c5 {[%emt 0:00:00]} 31. Ngf3 {[%emt 0:00:29]} Bf6 {[%emt 0:03:01]} 32. Nxg6 {[%emt 0:01:01]} Rg7 {[%emt 0:00:11]} 33. Ngh4 {[%emt 0:00:14]} Bb7 {[%emt 0:00:06]} 34. Nxf5 {[%emt 0:01:55]} Rg6 {[%emt 0:01:46]} 35. N3h4 {[%emt 0:01:10]} Rg7 {[%emt 0:01:28]} 36. Kh2 {[%emt 0:01:08]} Qc6 {[%emt 0:01:34]} 37. Rg1 {[%emt 0:02:04]} Rd7 {[%emt 0:00:50]} 38. Qg3+ {[%emt 0:00:24]} Kf8 {[%emt 0:00:01]} 39. Qg6 {[%emt 0:00:37]} d5 {[%emt 0:00:24]} 40. Re1 {[%emt 0:00:21]} Rf7 {[%emt 0:00:42]} 41. cxd5 {[%emt 0:01:34]} Qd7 {[%emt 0:00:40]} 42. Nh6 {[%emt 0:00:53]} 1-0

[Event "10th Floripa Open 2024"]
[Site "Florianopolis"]
[Date "2024.01.22"]
[Round "2.8"]
[White "Garmendia Vega, Gabriel"]
[Black "Matsuura, Everaldo"]
[Result "1/2-1/2"]
[ECO "B01"]
[WhiteElo "1937"]
[BlackElo "2410"]
[Annotator "RC"]
[PlyCount "89"]
[EventDate "2024.01.10"]
[EventType "swiss"]
[EventCountry "BRA"]
[SourceTitle "playchess.com"]
[Source "ChessBase"]
[SourceQuality "1"]
[TimeControl "5400+30"]

1. e4 {[%emt 0:00:12]} d5 {[%emt 0:05:12]} 2. exd5 {[%emt 0:00:06]} Nf6 {[%emt 0:00:21]} 3. d4 {[%emt 0:00:13]} Nxd5 {[%emt 0:00:20]} 4. Nf3 {[%emt 0:00:19]} Bg4 {[%emt 0:00:35]} 5. Be2 {[%emt 0:04:04]} e6 {[%emt 0:02:06]} 6. O-O {[%emt 0:00:55]} Be7 {[%emt 0:00:47]} 7. c4 {[%emt 0:07:27]} Nb6 {[%emt 0:02:02]} 8. c5 {[%emt 0:03:44]} N6d7 {[%emt 0:06:45]} 9. Nc3 {[%emt 0:04:33]} O-O {[%emt 0:03:56]} 10. Be3 {[%emt 0:03:26]} Nc6 {[%emt 0:04:34]} 11. h3 {[%emt 0:01:54]} Bh5 {[%emt 0:01:16]} 12. Qb3 {[%emt 0:03:09]} Qc8 {[%emt 0:06:04]} 13. Rad1 {[%emt 0:04:41]} Nf6 {[%emt 0:01:28]} 14. d5 {[%emt 0:03:15]} exd5 {[%emt 0:01:01]} 15. Nxd5 {[%emt 0:00:05]} Nxd5 {[%emt 0:00:40]} 16. Rxd5 {[%emt 0:00:12]} Bg6 {[%emt 0:01:35]} 17. Rfd1 {[%emt 0:02:05]} a5 {[%emt 0:06:11]} 18. Ne5 {[%emt 0:23:53]} a4 {[%emt 0:07:45]} 19. Qc4 {[%emt 0:03:49]} Nxe5 {[%emt 0:01:16]} 20. Rxe5 {[%emt 0:00:02]} Bf6 {[%emt 0:01:24]} 21. Bg4 {[%emt 0:00:24]} Qb8 {[%emt 0:01:37]} 22. Red5 {[%emt 0:00:16]} Bxb2 {[%emt 0:11:04]} 23. h4 {[%emt 0:08:04]} Qe8 {[%emt 0:05:58]} 24. Rd7 {[%emt 0:15:44]} a3 {[%emt 0:12:13]} 25. Bg5 {[%emt 0:03:11]} Qe4 {[%emt 0:03:14]} 26. Qxe4 {[%emt 0:00:10]} Bxe4 {[%emt 0:00:05]} 27. Rxc7 {[%emt 0:02:12]} h6 {[%emt 0:10:30]} 28. Be7 {[%emt 0:00:33]} Rfe8 {[%emt 0:00:06]} 29. Bf3 {[%emt 0:01:48]} Be5 {[%emt 0:02:06]} 30. Bd6 {[%emt 0:00:25]} Bxf3 {[%emt 0:01:23]} 31. gxf3 {[%emt 0:00:03]} Rab8 {[%emt 0:01:01]} 32. Bxe5 {[%emt 0:03:35]} Rxe5 {[%emt 0:00:06]} 33. Rdd7 {[%emt 0:00:07]} Rf5 {[%emt 0:01:13]} 34. Kg2 {[%emt 0:01:05]} h5 {[%emt 0:00:14]} 35. Rd3 {[%emt 0:01:34]} Ra8 {[%emt 0:00:23]} 36. Rb3 {[%emt 0:00:32]} Ra5 {[%emt 0:00:13]} 37. Rbxb7 {[%emt 0:00:14]} Raxc5 {[%emt 0:00:10]} 38. Rxc5 {[%emt 0:00:43]} Rxc5 {[%emt 0:00:07]} 39. Ra7 {[%emt 0:00:29]} Rc3 {[%emt 0:00:06]} 40. Kg3 {[%emt 0:00:05]} g6 {[%emt 0:00:20]} 41. Kf4 {[%emt 0:00:44]} Kg7 {[%emt 0:00:25]} 42. Ra6 {[%emt 0:00:23]} Kf8 {[%emt 0:01:21]} 43. Ra7 {[%emt 0:00:08]} Kg7 {[%emt 0:00:35]} 44. Ra6 {[%emt 0:00:03]} Kf8 {[%emt 0:00:35]} 45. Ra7 {[%emt 0:00:03]} 1/2-1/2

[Event "10th Floripa Open 2024"]
[Site "Florianopolis"]
[Date "2024.01.22"]
[Round "2.9"]
[White "Rodriguez Vila, Andres"]
[Black "Carvalho Jr, Celestino"]
[Result "1-0"]
[ECO "B12"]
[WhiteElo "2407"]
[BlackElo "1939"]
[Annotator "RC"]
[PlyCount "69"]
[EventDate "2024.01.10"]
[EventType "swiss"]
[EventCountry "BRA"]
[SourceTitle "playchess.com"]
[Source "ChessBase"]
[SourceQuality "1"]
[TimeControl "5400+30"]

1. e4 {[%emt 0:06:14]} c6 {[%emt 0:00:28]} 2. d4 {[%emt 0:00:15]} d5 {[%emt 0:00:16]} 3. e5 {[%emt 0:00:04]} Bf5 {[%emt 0:00:09]} 4. h4 {[%emt 0:00:38]} h6 {[%emt 0:01:31]} 5. g4 {[%emt 0:00:37]} Bd7 {[%emt 0:00:15]} 6. Be3 {[%emt 0:00:45]} e6 {[%emt 0:00:34]} 7. Nd2 {[%emt 0:00:34]} Qc7 {[%emt 0:00:22]} 8. f4 {[%emt 0:00:20]} c5 {[%emt 0:00:24]} 9. c3 {[%emt 0:00:08]} Nc6 {[%emt 0:00:18]} 10. dxc5 {[%emt 0:00:57]} f6 {[%emt 0:07:34]} 11. Bd3 {[%emt 0:06:19]} fxe5 {[%emt 0:02:08]} 12. Bg6+ {[%emt 0:00:06]} Kd8 {[%emt 0:00:08]} 13. Ne2 {[%emt 0:00:13]} e4 {[%emt 0:01:13]} 14. Nd4 {[%emt 0:02:14]} Nxd4 {[%emt 0:08:07]} 15. cxd4 {[%emt 0:00:05]} Bb5 {[%emt 0:01:58]} 16. a4 {[%emt 0:02:20]} Bd3 {[%emt 0:02:32]} 17. Nf3 {[%emt 0:03:57]} Ne7 {[%emt 0:05:43]} 18. Ne5 {[%emt 0:01:39]} Nxg6 {[%emt 0:01:21]} 19. Nxg6 {[%emt 0:00:03]} Rg8 {[%emt 0:00:28]} 20. Ne5 {[%emt 0:00:05]} Ba6 {[%emt 0:01:26]} 21. b4 {[%emt 0:00:17]} b5 {[%emt 0:00:07]} 22. Qe2 {[%emt 0:01:18]} Rb8 {[%emt 0:00:20]} 23. g5 {[%emt 0:00:07]} h5 {[%emt 0:04:24]} 24. Qxh5 {[%emt 0:02:00]} g6 {[%emt 0:00:02]} 25. Qg4 {[%emt 0:00:19]} Qc8 {[%emt 0:03:03]} 26. h5 {[%emt 0:01:44]} gxh5 {[%emt 0:02:04]} 27. Qxh5 {[%emt 0:00:50]} Rb7 {[%emt 0:00:50]} 28. Nf7+ {[%emt 0:00:11]} Kc7 {[%emt 0:00:44]} 29. f5 {[%emt 0:02:11]} Kb8 {[%emt 0:04:33]} 30. fxe6 {[%emt 0:02:20]} bxa4 {[%emt 0:02:45]} 31. g6 {[%emt 0:03:48]} Rxb4 {[%emt 0:07:14]} 32. Qxd5 {[%emt 0:00:57]} Bb7 {[%emt 0:01:21]} 33. Qe5+ {[%emt 0:00:16]} Ka8 {[%emt 0:00:08]} 34. e7 {[%emt 0:04:17]} Bg7 {[%emt 0:04:24]} 35. Qxg7 {[%emt 0:02:53]} 1-0

[Event "10th Floripa Open 2024"]
[Site "Florianopolis"]
[Date "2024.01.22"]
[Round "2.10"]
[White "Marcolino, Antonio Claudio H."]
[Black "Do Valle Cardoso, Lucas"]
[Result "0-1"]
[ECO "D25"]
[WhiteElo "1925"]
[BlackElo "2392"]
[Annotator "RC"]
[PlyCount "70"]
[EventDate "2024.01.10"]
[EventType "swiss"]
[EventCountry "BRA"]
[SourceTitle "playchess.com"]
[Source "ChessBase"]
[SourceQuality "1"]
[TimeControl "5400+30"]

1. d4 {[%emt 0:00:31]} d5 {[%emt 0:17:59]} 2. c4 {[%emt 0:00:24]} dxc4 {[%emt 0:00:07]} 3. Nf3 {[%emt 0:00:55]} Nf6 {[%emt 0:00:11]} 4. e3 {[%emt 0:01:12]} b5 {[%emt 0:00:04]} 5. a4 {[%emt 0:03:47]} b4 {[%emt 0:00:02]} 6. Bxc4 {[%emt 0:00:52]} e6 {[%emt 0:00:04]} 7. O-O {[%emt 0:01:20]} Be7 {[%emt 0:00:05]} 8. a5 {[%emt 0:00:30]} a6 {[%emt 0:01:00]} 9. Nbd2 {[%emt 0:05:35]} O-O {[%emt 0:00:21]} 10. Qe2 {[%emt 0:03:06]} Bb7 {[%emt 0:00:09]} 11. e4 {[%emt 0:01:31]} Nbd7 {[%emt 0:02:29]} 12. e5 {[%emt 0:03:19]} Nd5 {[%emt 0:00:05]} 13. Ne4 {[%emt 0:08:31]} c5 {[%emt 0:00:07]} 14. Nd6 {[%emt 0:24:18]} Bxd6 {[%emt 0:00:17]} 15. exd6 {[%emt 0:00:16]} cxd4 {[%emt 0:01:13]} 16. Bxd5 {[%emt 0:04:47]} Bxd5 {[%emt 0:00:24]} 17. Nxd4 {[%emt 0:02:46]} Nc5 {[%emt 0:07:00]} 18. Qg4 {[%emt 0:04:21]} Qxd6 {[%emt 0:01:31]} 19. Bh6 {[%emt 0:01:06]} Qe5 {[%emt 0:00:52]} 20. Rad1 {[%emt 0:01:51]} f5 {[%emt 0:04:39]} 21. Qf4 {[%emt 0:05:33]} Qxf4 {[%emt 0:00:05]} 22. Bxf4 {[%emt 0:00:11]} Rfc8 {[%emt 0:00:14]} 23. Nxf5 {[%emt 0:02:36]} Ra7 {[%emt 0:01:50]} 24. Ne3 {[%emt 0:01:51]} Rd8 {[%emt 0:06:19]} 25. Nc4 {[%emt 0:02:32]} Nb3 {[%emt 0:02:28]} 26. Bg5 {[%emt 0:03:40]} Rf8 {[%emt 0:04:11]} 27. Nb6 {[%emt 0:00:28]} Rf5 {[%emt 0:01:49]} 28. Be3 {[%emt 0:02:42]} Re7 {[%emt 0:05:37]} 29. Nc8 {[%emt 0:14:29]} Rc7 {[%emt 0:00:40]} 30. Nd6 {[%emt 0:00:00]} Rf8 {[%emt 0:00:35]} 31. f3 {[%emt 0:00:00]} Rc6 {[%emt 0:01:36]} 32. Ne4 {[%emt 0:00:00]} Nxa5 {[%emt 0:00:42]} 33. Bd2 {[%emt 0:00:00]} Rb8 {[%emt 0:05:33]} 34. Rc1 {[%emt 0:00:00]} Nc4 {[%emt 0:03:40]} 35. Rb1 {[%emt 0:00:00]} Bxe4 {[%emt 0:00:13]} 0-1

[Event "10th Floripa Open 2024"]
[Site "Florianopolis"]
[Date "2024.01.22"]
[Round "3.1"]
[White "Tari, Aryan"]
[Black "Piasetski, Leon"]
[Result "1-0"]
[ECO "B07"]
[WhiteElo "2623"]
[BlackElo "2155"]
[Annotator "RC"]
[PlyCount "65"]
[EventDate "2024.01.10"]
[EventType "swiss"]
[EventCountry "BRA"]
[SourceTitle "playchess.com"]
[Source "ChessBase"]
[SourceQuality "1"]
[TimeControl "5400+30"]

1. e4 {[%emt 0:02:17]} d6 {[%emt 0:00:10]} 2. d4 {[%emt 0:00:14]} Nf6 {[%emt 0:00:23]} 3. Nc3 {[%emt 0:00:05]} g6 {[%emt 0:00:10]} 4. Bf4 {[%emt 0:00:21]} c6 {[%emt 0:09:17]} 5. Qd2 {[%emt 0:00:37]} b5 {[%emt 0:04:07]} 6. Bd3 {[%emt 0:01:23]} Nbd7 {[%emt 0:01:37]} 7. Nf3 {[%emt 0:06:16]} Nb6 {[%emt 0:02:31]} 8. h3 {[%emt 0:05:42]} Bb7 {[%emt 0:06:21]} 9. O-O {[%emt 0:07:38]} Bg7 {[%emt 0:06:31]} 10. Bh6 {[%emt 0:00:54]} O-O {[%emt 0:03:20]} 11. e5 {[%emt 0:04:18]} Nfd5 {[%emt 0:03:49]} 12. Ne4 {[%emt 0:00:55]} f6 {[%emt 0:02:36]} 13. Rae1 {[%emt 0:12:46]} a5 {[%emt 0:06:02]} 14. c3 {[%emt 0:03:11]} Nc4 {[%emt 0:02:10]} 15. Bxc4 {[%emt 0:01:26]} bxc4 {[%emt 0:00:08]} 16. exd6 {[%emt 0:10:46]} exd6 {[%emt 0:00:35]} 17. Bf4 {[%emt 0:00:04]} Nxf4 {[%emt 0:05:52]} 18. Qxf4 {[%emt 0:00:06]} c5 {[%emt 0:00:20]} 19. dxc5 {[%emt 0:02:14]} Bxe4 {[%emt 0:04:23]} 20. Qxe4 {[%emt 0:00:41]} d5 {[%emt 0:00:32]} 21. Qe6+ {[%emt 0:00:10]} Kh8 {[%emt 0:00:07]} 22. Nd4 {[%emt 0:01:51]} Rc8 {[%emt 0:03:22]} 23. Qa6 {[%emt 0:02:50]} Ra8 {[%emt 0:01:26]} 24. Qc6 {[%emt 0:00:46]} Rc8 {[%emt 0:06:53]} 25. Qa4 {[%emt 0:00:15]} Re8 {[%emt 0:00:58]} 26. Ne6 {[%emt 0:02:36]} Qe7 {[%emt 0:00:09]} 27. Re2 {[%emt 0:04:56]} Qa7 {[%emt 0:02:30]} 28. Rfe1 {[%emt 0:00:16]} Bh6 {[%emt 0:00:38]} 29. Qd1 {[%emt 0:04:06]} Qd7 {[%emt 0:02:59]} 30. Qd4 {[%emt 0:00:25]} Bg7 {[%emt 0:00:38]} 31. b3 {[%emt 0:01:20]} cxb3 {[%emt 0:02:01]} 32. axb3 {[%emt 0:00:03]} Rc6 {[%emt 0:00:27]} 33. Qa4 {[%emt 0:02:03]} 1-0

[Event "10th Floripa Open 2024"]
[Site "Florianopolis"]
[Date "2024.01.22"]
[Round "3.2"]
[White "El Debs, Felipe de Cresce"]
[Black "Carvalho, Guillermo"]
[Result "1-0"]
[ECO "D30"]
[WhiteElo "2527"]
[BlackElo "2149"]
[Annotator "TA"]
[PlyCount "55"]
[EventDate "2024.01.10"]
[EventType "swiss"]
[EventCountry "BRA"]
[SourceTitle "playchess.com"]
[Source "ChessBase"]
[SourceQuality "1"]
[TimeControl "5400+30"]

{[%evp 15,55,38,25,19,42,50,58,48,83,70,74,74,69,84,81,58,99,92,166,122,179,173,178,182,305,293,290,281,507,514,512,518,546,519,681,659,687,684,1461,1393,1333,909]} 1. d4 {[%emt 0:00:26]} d5 {[%emt 0:00:13]} 2. c4 {[%emt 0:00:53]} e6 {[%emt 0:00:15]} 3. Nf3 {[%emt 0:00:10]} c5 {[%emt 0:00:23]} 4. cxd5 {[%emt 0:00:38]} exd5 {[%emt 0:00:30]} 5. g3 {[%emt 0:00:07]} Nf6 {[%emt 0:00:18]} 6. Bg2 {[%emt 0:00:10]} Be7 {[%emt 0:00:11]} 7. O-O {[%emt 0:00:09]} O-O {[%emt 0:00:08]} 8. dxc5 {[%emt 0:00:11]} Bxc5 {[%emt 0:00:32]} 9. a3 {[%emt 0:00:19] D30: Queen's Gambit Declined: Systems without Nc3.} a5 {[%emt 0:03:57] 9...h6 is a critical line.} 10. Bg5 {[%emt 0:04:11]} Be6 {[%emt 0:06:12]} 11. Nc3 {[%emt 0:00:46] White is slightly better.} Be7 {[%emt 0:04:23]} 12. Nd4 {[%emt 0:03:06] [#]} h6 $146 {[%emt 0:03:15]} ({Predecessor:} 12... Nc6 13. Nxe6 fxe6 14. Bh3 Qd7 15. e4 d4 16. Ne2 Nxe4 17. Bxe7 Qxe7 18. Nxd4 Nxd4 19. Qxd4 {1-0 Castillo Dalmau,A (2230)-Trenchs Lopez,C (1628) Barcelona Vila de Gracia op 25th 2021 (1)}) 13. Bf4 {[%emt 0:06:55] White is much more active.} Nc6 {[%emt 0:08:04]} 14. Nxe6 {[%emt 0:09:17]} fxe6 {[%emt 0:00:10]} 15. Qb3 {[%emt 0:00:16]} g5 {[%emt 0:18:59]} 16. Be3 {[%emt 0:21:09]} Rb8 {[%emt 0:12:21]} (16... Qe8 $16 {keeps fighting.}) 17. Rad1 {[%emt 0:01:29]} Kg7 {[%emt 0:00:37]} (17... Qe8 $16) 18. Bb6 $18 {[%emt 0:01:16]} Qc8 {[%emt 0:03:18]} 19. Nb5 {[%emt 0:03:50]} Ra8 {[%emt 0:09:58] [#]} (19... Bd8 $142) 20. Nc7 $1 {[%emt 0:20:27]} Rb8 {[%emt 0:00:44]} 21. Qe3 {[%emt 0:00:16]} Kf7 {[%emt 0:03:16]} (21... Kh8 {was worth a try.} 22. Bh3 (22. Nxe6 Ng4 $18) 22... d4) 22. f4 {[%emt 0:00:24] White is clearly winning.} d4 {[%emt 0:01:55]} 23. Qb3 {[%emt 0:01:03]} (23. Bxd4 Nxd4 24. fxg5 (24. Rxd4 Qxc7 25. fxg5 hxg5 $15) 24... hxg5 25. Rxd4 Qxc7 $17) 23... a4 {[%emt 0:01:43]} 24. Qc4 {[%emt 0:02:14] Strongly threatening fxg5.} gxf4 {[%emt 0:03:00]} 25. Rxf4 {[%emt 0:00:12]} Bd6 {[%emt 0:00:46] [#]} 26. Nxe6 {[%emt 0:01:03][%mdl 576] Double Attack} Ke7 {[%emt 0:01:44]} (26... Bxf4 27. Nxf4+) 27. Nxf8 {[%emt 0:01:16]} Qxf8 {[%emt 0:02:47]} 28. Rf5 {[%emt 0:00:32] Artfully played by El Debs.   Weighted Error Value: White=0.04 (flawless) /Black=0.52} 1-0

[Event "10th Floripa Open 2024"]
[Site "Florianopolis"]
[Date "2024.01.22"]
[Round "3.3"]
[White "Tomiello, Mateus Costamilan"]
[Black "Cuenca Jimenez, Jose Fernando"]
[Result "0-1"]
[ECO "A29"]
[WhiteElo "2151"]
[BlackElo "2514"]
[Annotator "ChessBase"]
[PlyCount "110"]
[EventDate "2024.01.10"]
[EventType "swiss"]
[EventCountry "BRA"]
[SourceTitle "playchess.com"]
[Source "ChessBase"]
[SourceQuality "1"]
[TimeControl "5400+30"]

1. c4 {[%emt 0:01:53]} e5 {[%emt 0:00:15]} 2. Nc3 {[%emt 0:01:05]} Nf6 {[%emt 0:00:19]} 3. g3 {[%emt 0:01:05]} Bb4 {[%emt 0:00:21]} 4. Bg2 {[%emt 0:00:59]} O-O {[%emt 0:01:01]} 5. Nf3 {[%emt 0:01:26]} Nc6 {[%emt 0:01:33]} 6. Nd5 {[%emt 0:02:19]} Bc5 {[%emt 0:10:47]} 7. d3 {[%emt 0:04:43]} h6 {[%emt 0:00:38]} 8. O-O {[%emt 0:01:42]} d6 {[%emt 0:00:16]} 9. e3 {[%emt 0:02:21]} a6 {[%emt 0:02:10]} 10. Bd2 {[%emt 0:09:28]} Ba7 {[%emt 0:01:50]} 11. Bc3 {[%emt 0:04:44]} Nxd5 {[%emt 0:03:02]} 12. cxd5 {[%emt 0:01:41]} Ne7 {[%emt 0:00:03]} 13. Nd2 {[%emt 0:07:55]} c6 {[%emt 0:03:03]} 14. dxc6 {[%emt 0:01:43]} Nxc6 {[%emt 0:00:47]} 15. Qb3 {[%emt 0:04:16]} Rb8 {[%emt 0:00:27]} 16. Nc4 {[%emt 0:06:13]} Qc7 {[%emt 0:11:14]} 17. Qa3 {[%emt 0:05:35]} Bc5 {[%emt 0:14:50]} 18. b4 {[%emt 0:00:45]} Ba7 {[%emt 0:00:03]} 19. Rac1 {[%emt 0:06:10]} Bf5 {[%emt 0:05:30]} 20. Ba1 {[%emt 0:04:44]} Qd7 {[%emt 0:05:36]} 21. Rfd1 {[%emt 0:03:42]} Rfd8 {[%emt 0:07:14]} 22. Qb2 {[%emt 0:03:07]} Ne7 {[%emt 0:01:56]} 23. Na5 {[%emt 0:05:55]} Be6 {[%emt 0:09:14]} 24. Rc2 {[%emt 0:02:23]} Bd5 {[%emt 0:01:49]} 25. Rdc1 {[%emt 0:01:25]} Bxg2 {[%emt 0:00:08]} 26. Kxg2 {[%emt 0:00:09]} Qe6 {[%emt 0:04:50]} 27. Qb3 {[%emt 0:01:58]} Qxb3 {[%emt 0:00:27]} 28. Nxb3 {[%emt 0:00:09]} Nd5 {[%emt 0:00:42]} 29. a3 {[%emt 0:00:57]} Bxe3 {[%emt 0:00:43]} 30. fxe3 {[%emt 0:00:52]} Nxe3+ {[%emt 0:00:05]} 31. Kf3 {[%emt 0:00:24]} Nxc2 {[%emt 0:00:15]} 32. Rxc2 {[%emt 0:00:07]} Rbc8 {[%emt 0:00:19]} 33. Rd2 {[%emt 0:02:13]} f6 {[%emt 0:01:27]} 34. d4 {[%emt 0:01:33]} Kf7 {[%emt 0:00:59]} 35. Ke4 {[%emt 0:01:34]} Ke6 {[%emt 0:04:25]} 36. d5+ {[%emt 0:02:25]} Kf7 {[%emt 0:01:46]} 37. Na5 {[%emt 0:00:30]} Rd7 {[%emt 0:06:14]} 38. g4 {[%emt 0:09:20]} Rc1 {[%emt 0:01:17]} 39. Bb2 {[%emt 0:00:00]} Rf1 {[%emt 0:00:21]} 40. Ke3 {[%emt 0:00:00]} Rf4 {[%emt 0:00:36]} 41. Rg2 {[%emt 0:00:00]} Rc7 {[%emt 0:00:47]} 42. Kd3 {[%emt 0:00:00]} h5 {[%emt 0:01:03]} 43. gxh5 {[%emt 0:00:00]} Rh4 {[%emt 0:00:00]} 44. Ke3 {[%emt 0:00:00]} Rxh5 {[%emt 0:00:11]} 45. Kd2 {[%emt 0:00:16]} Rh4 {[%emt 0:00:31]} 46. Rf2 {[%emt 0:00:33]} g5 {[%emt 0:00:15]} 47. Bc3 {[%emt 0:01:14]} Rh3 {[%emt 0:00:32]} 48. Bb2 {[%emt 0:00:27]} Kg6 {[%emt 0:00:03]} 49. a4 {[%emt 0:00:47]} Rch7 {[%emt 0:01:17]} 50. Nc4 {[%emt 0:01:04]} Rxh2 {[%emt 0:00:07]} 51. Rxh2 {[%emt 0:00:18]} Rxh2+ {[%emt 0:00:00]} 52. Kc3 {[%emt 0:00:32]} g4 {[%emt 0:00:46]} 53. Bc1 {[%emt 0:00:40]} g3 {[%emt 0:00:14]} 54. Nxd6 {[%emt 0:00:16]} g2 {[%emt 0:00:05]} 55. Be3 {[%emt 0:00:13]} Rh3 {[%emt 0:03:37]} 0-1